[Event "Early-Titled-Tuesday-Blitz-May-07-2024"]
[Site "Chess.com"]
[Date "2024.05.07"]
[Round "5"]
[White "andriipalchuk"]
[Black "LeoLV10"]
[Result "1-0"]
[WhiteElo "2616"]
[BlackElo "2472"]
[TimeControl "180+1"]
[EndTime "9:01:15 PDT"]
[Termination "andriipalchuk won by checkmate"]

1. d4 {[%clk 0:03:00.9]} 1... Nf6 {[%clk 0:02:59.6]} 2. c4 {[%clk 0:03:01.1]}
2... c5 {[%clk 0:02:59.9]} 3. Nf3 {[%clk 0:02:55.1]} 3... e6 {[%clk 0:02:58.9]}
4. g3 {[%clk 0:02:52.7]} 4... d5 {[%clk 0:02:55.7]} 5. cxd5 {[%clk 0:02:52.3]}
5... exd5 {[%clk 0:02:54.6]} 6. Bg2 {[%clk 0:02:52.4]} 6... Nc6 {[%clk 0:02:53]}
7. O-O {[%clk 0:02:52.8]} 7... Be7 {[%clk 0:02:52.7]} 8. Nc3 {[%clk 0:02:52.4]}
8... O-O {[%clk 0:02:52.4]} 9. Bg5 {[%clk 0:02:43.7]} 9... Ne4 {[%clk
0:02:34.4]} 10. Bxe7 {[%clk 0:02:23.6]} 10... Nxe7 {[%clk 0:02:35.3]} 11. dxc5
{[%clk 0:02:02.4]} 11... Nxc3 {[%clk 0:02:14.8]} 12. bxc3 {[%clk 0:02:02.7]}
12... Qa5 {[%clk 0:02:15.7]} 13. Qd4 {[%clk 0:01:51.9]} 13... Be6 {[%clk
0:02:12.4]} 14. Rfb1 {[%clk 0:01:16.3]} 14... Nf5 {[%clk 0:02:06.1]} 15. Qb4
{[%clk 0:01:15.3]} 15... Qc7 {[%clk 0:01:51.2]} 16. Nd4 {[%clk 0:00:59.3]} 16...
Nxd4 {[%clk 0:01:51.5]} 17. cxd4 {[%clk 0:00:54.3]} 17... Rab8 {[%clk
0:01:51.5]} 18. Rc1 {[%clk 0:00:43.4]} 18... Qc6 {[%clk 0:01:34.2]} 19. a4
{[%clk 0:00:37.7]} 19... Bd7 {[%clk 0:01:34]} 20. Qb3 {[%clk 0:00:36.7]} 20...
Be6 {[%clk 0:01:32.8]} 21. Qb5 {[%clk 0:00:36.9]} 21... Qc7 {[%clk 0:01:33.1]}
22. Rab1 {[%clk 0:00:36.9]} 22... Bd7 {[%clk 0:01:30.4]} 23. Qb3 {[%clk
0:00:36.5]} 23... Bf5 {[%clk 0:01:26.4]} 24. Rb2 {[%clk 0:00:34.7]} 24... Rfd8
{[%clk 0:01:19.3]} 25. Bxd5 {[%clk 0:00:32.9]} 25... Qd7 {[%clk 0:01:19.9]} 26.
e4 {[%clk 0:00:29.8]} 26... Bh3 {[%clk 0:01:10.2]} 27. c6 {[%clk 0:00:24.1]}
27... Qc7 {[%clk 0:01:07.8]} 28. Bxf7+ {[%clk 0:00:19.4]} 28... Kh8 {[%clk
0:01:07.6]} 29. Bd5 {[%clk 0:00:16.4]} 29... bxc6 {[%clk 0:01:06.2]} 30. Qc3
{[%clk 0:00:16.6]} 30... Rxb2 {[%clk 0:00:55.9]} 31. Qxb2 {[%clk 0:00:17.5]}
31... Qa5 {[%clk 0:00:55.1]} 32. Bxc6 {[%clk 0:00:16]} 32... h6 {[%clk
0:00:55.6]} 33. f3 {[%clk 0:00:12.6]} 33... Rc8 {[%clk 0:00:54]} 34. d5 {[%clk
0:00:12.9]} 34... Rf8 {[%clk 0:00:51.7]} 35. Qc3 {[%clk 0:00:13]} 35... Qd8
{[%clk 0:00:50.1]} 36. Qe3 {[%clk 0:00:12.9]} 36... Qa5 {[%clk 0:00:45.9]} 37.
f4 {[%clk 0:00:13.2]} 37... Rb8 {[%clk 0:00:43.6]} 38. Qc3 {[%clk 0:00:12.2]}
38... Qb6+ {[%clk 0:00:41.4]} 39. Qc5 {[%clk 0:00:11.4]} 39... Qb2 {[%clk
0:00:41.1]} 40. Qc2 {[%clk 0:00:11.5]} 40... Qd4+ {[%clk 0:00:40.7]} 41. Qf2
{[%clk 0:00:11.6]} 41... Qd3 {[%clk 0:00:39.6]} 42. Re1 {[%clk 0:00:10.7]} 42...
Rb1 {[%clk 0:00:35.5]} 43. d6 {[%clk 0:00:05.9]} 43... Rxe1+ {[%clk 0:00:19.6]}
44. Qxe1 {[%clk 0:00:05.9]} 44... Qxd6 {[%clk 0:00:20.5]} 45. Bd5 {[%clk
0:00:06.1]} 45... Qc5+ {[%clk 0:00:20.3]} 46. Kh1 {[%clk 0:00:06.4]} 46... Qa3
{[%clk 0:00:19.4]} 47. e5 {[%clk 0:00:05.4]} 47... Qxa4 {[%clk 0:00:17.1]} 48.
Bg2 {[%clk 0:00:06]} 48... Be6 {[%clk 0:00:16.6]} 49. h3 {[%clk 0:00:05.4]}
49... Qd4 {[%clk 0:00:16.2]} 50. Qa5 {[%clk 0:00:03.7]} 50... Bg8 {[%clk
0:00:10.7]} 51. Kh2 {[%clk 0:00:03.5]} 51... h5 {[%clk 0:00:10.2]} 52. h4 {[%clk
0:00:03.3]} 52... Qb2 {[%clk 0:00:07.2]} 53. Kh1 {[%clk 0:00:01.2]} 53... Qc1+
{[%clk 0:00:06.7]} 54. Kh2 {[%clk 0:00:01.4]} 54... Qc2 {[%clk 0:00:06.7]} 55.
Qd8 {[%clk 0:00:02]} 55... Kh7 {[%clk 0:00:06.1]} 56. Qd6 {[%clk 0:00:01.9]}
56... Bc4 {[%clk 0:00:04.5]} 57. Qd4 {[%clk 0:00:02.5]} 57... Bf1 {[%clk
0:00:04.2]} 58. Qe4+ {[%clk 0:00:03]} 58... Qxe4 {[%clk 0:00:03.7]} 59. Bxe4+
{[%clk 0:00:03.9]} 59... Kg8 {[%clk 0:00:04]} 60. Bd5+ {[%clk 0:00:04.3]} 60...
Kf8 {[%clk 0:00:04]} 61. Kg1 {[%clk 0:00:05.2]} 61... Bh3 {[%clk 0:00:03.6]} 62.
Kf2 {[%clk 0:00:05.6]} 62... Ke7 {[%clk 0:00:03.9]} 63. Ke3 {[%clk 0:00:06.1]}
63... g6 {[%clk 0:00:01.9]} 64. Be4 {[%clk 0:00:05.9]} 64... Kf7 {[%clk
0:00:01.8]} 65. Kd4 {[%clk 0:00:05.9]} 65... Bf1 {[%clk 0:00:02.5]} 66. Kc5
{[%clk 0:00:06.1]} 66... Bh3 {[%clk 0:00:02]} 67. Bd5+ {[%clk 0:00:06.4]} 67...
Ke7 {[%clk 0:00:02.2]} 68. Kb5 {[%clk 0:00:05.7]} 68... Bc8 {[%clk 0:00:03.1]}
69. Ka5 {[%clk 0:00:05.8]} 69... Bd7 {[%clk 0:00:03.4]} 70. Be4 {[%clk
0:00:06.2]} 70... Bc8 {[%clk 0:00:03.1]} 71. Bxg6 {[%clk 0:00:06.2]} 71... Bg4
{[%clk 0:00:04]} 72. Ka6 {[%clk 0:00:05.8]} 72... Kd7 {[%clk 0:00:04.3]} 73. Be4
{[%clk 0:00:05.9]} 73... Ke6 {[%clk 0:00:05.2]} 74. Kxa7 {[%clk 0:00:06.2]}
74... Bd1 {[%clk 0:00:04.3]} 75. Kb6 {[%clk 0:00:06.4]} 75... Bg4 {[%clk
0:00:04.4]} 76. Kc5 {[%clk 0:00:06.8]} 76... Bd1 {[%clk 0:00:05.1]} 77. Kd4
{[%clk 0:00:07.3]} 77... Bg4 {[%clk 0:00:05]} 78. Bd5+ {[%clk 0:00:07.6]} 78...
Kf5 {[%clk 0:00:05.8]} 79. Bc4 {[%clk 0:00:08]} 79... Bd1 {[%clk 0:00:05]} 80.
Ke3 {[%clk 0:00:07.7]} 80... Bg4 {[%clk 0:00:05.6]} 81. Bd3+ {[%clk 0:00:07.7]}
81... Ke6 {[%clk 0:00:06.1]} 82. Kd4 {[%clk 0:00:07.9]} 82... Bf3 {[%clk
0:00:05.3]} 83. f5+ {[%clk 0:00:08.2]} 83... Ke7 {[%clk 0:00:05]} 84. Ke3 {[%clk
0:00:08.8]} 84... Bg4 {[%clk 0:00:05.3]} 85. Kf4 {[%clk 0:00:08.9]} 85... Bd1
{[%clk 0:00:06.1]} 86. Bc4 {[%clk 0:00:08.6]} 86... Bg4 {[%clk 0:00:07]} 87. f6+
{[%clk 0:00:08.1]} 87... Kf8 {[%clk 0:00:07.9]} 88. e6 {[%clk 0:00:07.7]} 88...
Bd1 {[%clk 0:00:07.1]} 89. e7+ {[%clk 0:00:07.5]} 89... Ke8 {[%clk 0:00:07.3]}
90. Bb5+ {[%clk 0:00:07.6]} 90... Kf7 {[%clk 0:00:07.9]} 91. e8=Q+ {[%clk
0:00:08]} 91... Kxf6 {[%clk 0:00:08.8]} 92. Qe5+ {[%clk 0:00:08.1]} 92... Kg6
{[%clk 0:00:08.1]} 93. Bd3+ {[%clk 0:00:08]} 93... Kh6 {[%clk 0:00:08.2]} 94.
Qf6# {[%clk 0:00:07.7]} 1-0

[Event "Early-Titled-Tuesday-Blitz-May-07-2024"]
[Site "Chess.com"]
[Date "2024.05.07"]
[Round "5"]
[White "Thjop"]
[Black "DACF2905"]
[Result "1-0"]
[WhiteElo "2585"]
[BlackElo "2435"]
[TimeControl "180+1"]
[EndTime "9:01:28 PDT"]
[Termination "Thjop won on time"]

1. e4 {[%clk 0:03:00.9]} 1... e6 {[%clk 0:02:58.9]} 2. d4 {[%clk 0:03:00.6]}
2... d5 {[%clk 0:02:59.1]} 3. Nd2 {[%clk 0:03:01.5]} 3... Nc6 {[%clk 0:02:58.1]}
4. Ngf3 {[%clk 0:03:01.1]} 4... Nf6 {[%clk 0:02:57.8]} 5. e5 {[%clk 0:03:01]}
5... Nd7 {[%clk 0:02:55.2]} 6. Bd3 {[%clk 0:03:01.5]} 6... Nb4 {[%clk
0:02:51.5]} 7. Be2 {[%clk 0:03:01.4]} 7... f6 {[%clk 0:02:51]} 8. O-O {[%clk
0:02:34.1]} 8... fxe5 {[%clk 0:02:50.2]} 9. Nxe5 {[%clk 0:02:31.7]} 9... Nxe5
{[%clk 0:02:49.7]} 10. dxe5 {[%clk 0:02:31.8]} 10... Be7 {[%clk 0:02:49.3]} 11.
f4 {[%clk 0:02:22.5]} 11... O-O {[%clk 0:02:48.5]} 12. c3 {[%clk 0:02:22.4]}
12... Nc6 {[%clk 0:02:47.3]} 13. Nb3 {[%clk 0:02:00.6]} 13... a5 {[%clk
0:02:46.5]} 14. a4 {[%clk 0:01:59.5]} 14... Bd7 {[%clk 0:02:36.5]} 15. Be3
{[%clk 0:01:56.9]} 15... b6 {[%clk 0:02:35.3]} 16. Bd3 {[%clk 0:01:40.6]} 16...
Qe8 {[%clk 0:02:30.3]} 17. Qg4 {[%clk 0:01:34.9]} 17... Nd8 {[%clk 0:02:25.6]}
18. Rad1 {[%clk 0:01:00.6]} 18... c5 {[%clk 0:02:24]} 19. f5 {[%clk 0:01:00.7]}
19... exf5 {[%clk 0:02:23.3]} 20. Bxf5 {[%clk 0:00:59.6]} 20... Bxf5 {[%clk
0:02:23.3]} 21. Rxf5 {[%clk 0:00:59.2]} 21... Rxf5 {[%clk 0:02:11.4]} 22. Qxf5
{[%clk 0:01:00.1]} 22... Qxa4 {[%clk 0:02:09.3]} 23. Qc2 {[%clk 0:00:24.9]}
23... Qc6 {[%clk 0:02:08.5]} 24. Qd2 {[%clk 0:00:22.8]} 24... a4 {[%clk
0:02:06.6]} 25. Na1 {[%clk 0:00:19]} 25... Ne6 {[%clk 0:01:54.4]} 26. Qxd5
{[%clk 0:00:18.7]} 26... Qxd5 {[%clk 0:01:54.7]} 27. Rxd5 {[%clk 0:00:19.6]}
27... a3 {[%clk 0:01:55.1]} 28. b3 {[%clk 0:00:19.7]} 28... a2 {[%clk
0:01:47.7]} 29. Kf2 {[%clk 0:00:18.5]} 29... g5 {[%clk 0:01:36.9]} 30. Ke2
{[%clk 0:00:18]} 30... b5 {[%clk 0:01:26.6]} 31. Rd7 {[%clk 0:00:17.4]} 31...
Kf7 {[%clk 0:01:23.9]} 32. Kd3 {[%clk 0:00:17.3]} 32... Rd8 {[%clk 0:01:17.8]}
33. Rxd8 {[%clk 0:00:17.1]} 33... Bxd8 {[%clk 0:01:17.7]} 34. Kc2 {[%clk
0:00:14.7]} 34... Bc7 {[%clk 0:01:16.8]} 35. Kb2 {[%clk 0:00:05.8]} 35... Bxe5
{[%clk 0:01:16.1]} 36. Kxa2 {[%clk 0:00:06.7]} 36... Bxc3 {[%clk 0:01:16.1]} 37.
Nc2 {[%clk 0:00:06.9]} 37... c4 {[%clk 0:01:13.2]} 38. h3 {[%clk 0:00:06.4]}
38... h5 {[%clk 0:01:12.4]} 39. bxc4 {[%clk 0:00:06.8]} 39... bxc4 {[%clk
0:01:12.1]} 40. Na3 {[%clk 0:00:07.4]} 40... Kg6 {[%clk 0:01:05.7]} 41. Nxc4
{[%clk 0:00:07.1]} 41... g4 {[%clk 0:01:05.6]} 42. Kb3 {[%clk 0:00:07.3]} 42...
Bf6 {[%clk 0:01:02.2]} 43. hxg4 {[%clk 0:00:07.5]} 43... hxg4 {[%clk 0:00:59.2]}
44. Kc2 {[%clk 0:00:07.9]} 44... Kf5 {[%clk 0:00:59.4]} 45. Kd3 {[%clk
0:00:08.3]} 45... Nf4+ {[%clk 0:00:58.5]} 46. Bxf4 {[%clk 0:00:07.6]} 46... Kxf4
{[%clk 0:00:58.8]} 47. Ke2 {[%clk 0:00:08.3]} 47... Bd4 {[%clk 0:00:56.1]} 48.
Nd2 {[%clk 0:00:08]} 48... Kg3 {[%clk 0:00:54.3]} 49. Kf1 {[%clk 0:00:08.3]}
49... Kh2 {[%clk 0:00:52.3]} 50. Ne4 {[%clk 0:00:07.4]} 50... Bb2 {[%clk
0:00:38.7]} 51. Nf2 {[%clk 0:00:07.1]} 51... Kg3 {[%clk 0:00:37.6]} 52. Nd3
{[%clk 0:00:06.9]} 52... Bd4 {[%clk 0:00:36.7]} 53. Nc1 {[%clk 0:00:06.6]} 53...
Be3 {[%clk 0:00:30.4]} 54. Ne2+ {[%clk 0:00:07.2]} 54... Kh4 {[%clk 0:00:30.6]}
55. Nc3 {[%clk 0:00:06.7]} 55... Kg5 {[%clk 0:00:29.8]} 56. Ke2 {[%clk
0:00:05.9]} 56... Bd4 {[%clk 0:00:29.5]} 57. Nd5 {[%clk 0:00:04.9]} 57... Kh4
{[%clk 0:00:18.5]} 58. Kf1 {[%clk 0:00:03]} 58... Kg3 {[%clk 0:00:18]} 59. Ne7
{[%clk 0:00:03.4]} 59... Kf4 {[%clk 0:00:17.2]} 60. Nc6 {[%clk 0:00:02.1]} 60...
Be3 {[%clk 0:00:16.4]} 61. Nb4 {[%clk 0:00:01.8]} 61... Ke4 {[%clk 0:00:16.3]}
62. Nc2 {[%clk 0:00:02]} 62... Bc5 {[%clk 0:00:15.9]} 63. Ne1 {[%clk 0:00:02.4]}
63... Bb4 {[%clk 0:00:15.3]} 64. Nc2 {[%clk 0:00:02.5]} 64... Bc3 {[%clk
0:00:12.6]} 65. Ke2 {[%clk 0:00:03.2]} 65... g3 {[%clk 0:00:12]} 66. Ne3 {[%clk
0:00:03.6]} 66... Bd4 {[%clk 0:00:11.5]} 67. Nf1 {[%clk 0:00:04]} 67... Be5
{[%clk 0:00:11.6]} 68. Nd2+ {[%clk 0:00:03.8]} 68... Kf4 {[%clk 0:00:11.1]} 69.
Kd3 {[%clk 0:00:04.3]} 69... Bd6 {[%clk 0:00:10.6]} 70. Nc4 {[%clk 0:00:04.4]}
70... Bc7 {[%clk 0:00:10.1]} 71. Ne3 {[%clk 0:00:03.9]} 71... Bb8 {[%clk
0:00:07.9]} 72. Nd5+ {[%clk 0:00:04]} 72... Kg4 {[%clk 0:00:07.8]} 73. Ke4
{[%clk 0:00:03.8]} 73... Ba7 {[%clk 0:00:07.5]} 74. Nf6+ {[%clk 0:00:04.1]}
74... Kh4 {[%clk 0:00:06.9]} 75. Kf5 {[%clk 0:00:03.4]} 75... Bf2 {[%clk
0:00:03.9]} 76. Nd5 {[%clk 0:00:03.5]} 76... Be1 {[%clk 0:00:03.8]} 77. Nf4
{[%clk 0:00:03.6]} 77... Bf2 {[%clk 0:00:03.8]} 78. Ng6+ {[%clk 0:00:04.1]}
78... Kh5 {[%clk 0:00:03.8]} 79. Ne5 {[%clk 0:00:04.5]} 79... Kh4 {[%clk
0:00:04.2]} 80. Nf3+ {[%clk 0:00:04.7]} 80... Kh5 {[%clk 0:00:04.6]} 81. Kf4
{[%clk 0:00:05.1]} 81... Bc5 {[%clk 0:00:02.6]} 82. Nd2 {[%clk 0:00:03.8]} 82...
Bd6+ {[%clk 0:00:03.5]} 83. Kf5 {[%clk 0:00:03.5]} 83... Bb8 {[%clk 0:00:03.2]}
84. Ne4 {[%clk 0:00:03.9]} 84... Kh4 {[%clk 0:00:03.3]} 85. Ng5 {[%clk
0:00:03.2]} 85... Kh5 {[%clk 0:00:02.9]} 86. Nf3 {[%clk 0:00:03.4]} 86... Bc7
{[%clk 0:00:00.8]} 87. Nd2 {[%clk 0:00:03.6]} 1-0

[Event "Early-Titled-Tuesday-Blitz-May-07-2024"]
[Site "Chess.com"]
[Date "2024.05.07"]
[Round "5"]
[White "Thebigsqueeze"]
[Black "nuadvaga"]
[Result "1-0"]
[WhiteElo "2369"]
[BlackElo "2153"]
[TimeControl "180+1"]
[EndTime "9:02:14 PDT"]
[Termination "Thebigsqueeze won on time"]

1. d4 {[%clk 0:02:59.4]} 1... Nf6 {[%clk 0:02:58.5]} 2. c4 {[%clk 0:02:59.3]}
2... c5 {[%clk 0:02:57.9]} 3. Nf3 {[%clk 0:02:57.9]} 3... cxd4 {[%clk
0:02:56.7]} 4. Nxd4 {[%clk 0:02:57.9]} 4... e5 {[%clk 0:02:57.3]} 5. Nf3 {[%clk
0:02:57.7]} 5... e4 {[%clk 0:02:56.6]} 6. Nd4 {[%clk 0:02:57.5]} 6... d5 {[%clk
0:02:56.6]} 7. e3 {[%clk 0:02:56]} 7... Bc5 {[%clk 0:02:54]} 8. Nc3 {[%clk
0:02:52.8]} 8... O-O {[%clk 0:02:53]} 9. a3 {[%clk 0:02:49.9]} 9... dxc4 {[%clk
0:02:52.8]} 10. Bxc4 {[%clk 0:02:49]} 10... a6 {[%clk 0:02:53.2]} 11. b4 {[%clk
0:02:47.5]} 11... Ba7 {[%clk 0:02:51.5]} 12. O-O {[%clk 0:02:43.4]} 12... Qe7
{[%clk 0:02:50.6]} 13. Bb2 {[%clk 0:02:36.2]} 13... Bg4 {[%clk 0:02:49.3]} 14.
Qb3 {[%clk 0:02:34]} 14... Nbd7 {[%clk 0:02:42.4]} 15. Nd5 {[%clk 0:02:32.9]}
15... Nxd5 {[%clk 0:02:38.2]} 16. Bxd5 {[%clk 0:02:31.9]} 16... Nf6 {[%clk
0:02:34.8]} 17. h3 {[%clk 0:02:20.9]} 17... Bh5 {[%clk 0:02:31.3]} 18. Nf5
{[%clk 0:02:03.9]} 18... Qd7 {[%clk 0:02:16.1]} 19. Nh6+ {[%clk 0:01:50.6]}
19... Kh8 {[%clk 0:02:10.2]} 20. Bxf6 {[%clk 0:01:48.8]} 20... gxf6 {[%clk
0:02:09.4]} 21. Bxe4 {[%clk 0:01:40.2]} 21... Rae8 {[%clk 0:01:47.3]} 22. Qc3
{[%clk 0:01:37.2]} 22... Qe6 {[%clk 0:01:23]} 23. Bxb7 {[%clk 0:01:34.7]} 23...
Bb8 {[%clk 0:01:16.4]} 24. e4 {[%clk 0:01:22.7]} 24... Be5 {[%clk 0:01:10.4]}
25. Qe3 {[%clk 0:01:21.6]} 25... Bxa1 {[%clk 0:01:06.1]} 26. Rxa1 {[%clk
0:01:22.1]} 26... Qe5 {[%clk 0:01:01.1]} 27. Re1 {[%clk 0:01:19.3]} 27... Bg6
{[%clk 0:00:59.5]} 28. Bxa6 {[%clk 0:01:12.6]} 28... Qxe4 {[%clk 0:00:40.5]} 29.
Qxe4 {[%clk 0:01:11.2]} 29... Rxe4 {[%clk 0:00:41.4]} 30. Rxe4 {[%clk
0:01:10.7]} 30... Bxe4 {[%clk 0:00:42.2]} 31. Bc4 {[%clk 0:01:05.5]} 31... Kg7
{[%clk 0:00:40.8]} 32. Ng4 {[%clk 0:01:05]} 32... Ra8 {[%clk 0:00:37.3]} 33. f3
{[%clk 0:01:04.1]} 33... Bg6 {[%clk 0:00:35.3]} 34. b5 {[%clk 0:00:58.8]} 34...
Rxa3 {[%clk 0:00:33.3]} 35. Kh2 {[%clk 0:00:56.9]} 35... Rc3 {[%clk 0:00:31.9]}
36. Bd5 {[%clk 0:00:56.9]} 36... Rc5 {[%clk 0:00:25.7]} 37. Bc6 {[%clk
0:00:56.5]} 37... Bd3 {[%clk 0:00:23.1]} 38. Nf2 {[%clk 0:00:52.7]} 38... Bxb5
{[%clk 0:00:22.7]} 39. Bxb5 {[%clk 0:00:52.8]} 39... Rxb5 {[%clk 0:00:23.2]} 40.
Ne4 {[%clk 0:00:53.3]} 40... h5 {[%clk 0:00:20.6]} 41. Kg3 {[%clk 0:00:52.7]}
41... Kg6 {[%clk 0:00:20.4]} 42. Nc3 {[%clk 0:00:50.5]} 42... Rb3 {[%clk
0:00:20.1]} 43. Nd5 {[%clk 0:00:50.2]} 43... Rb5 {[%clk 0:00:17.9]} 44. Ne7+
{[%clk 0:00:47.5]} 44... Kg5 {[%clk 0:00:17.9]} 45. h4+ {[%clk 0:00:47.3]} 45...
Kh6 {[%clk 0:00:18.1]} 46. Nc6 {[%clk 0:00:45.7]} 46... Rc5 {[%clk 0:00:18.2]}
47. Nd4 {[%clk 0:00:45.6]} 47... f5 {[%clk 0:00:17]} 48. Kf4 {[%clk 0:00:36.1]}
48... Kg6 {[%clk 0:00:17.2]} 49. Kg3 {[%clk 0:00:34.2]} 49... Rc4 {[%clk
0:00:17]} 50. Nb5 {[%clk 0:00:33.1]} 50... Ra4 {[%clk 0:00:16.8]} 51. Nd6 {[%clk
0:00:32.9]} 51... f4+ {[%clk 0:00:16.4]} 52. Kh3 {[%clk 0:00:32.7]} 52... Ra1
{[%clk 0:00:16.4]} 53. Kh2 {[%clk 0:00:32.9]} 53... f6 {[%clk 0:00:15.4]} 54.
Ne4 {[%clk 0:00:32.5]} 54... Kf5 {[%clk 0:00:15.1]} 55. Nd6+ {[%clk 0:00:32.4]}
55... Ke5 {[%clk 0:00:15.7]} 56. Nf7+ {[%clk 0:00:32.3]} 56... Ke6 {[%clk
0:00:14.9]} 57. Nd8+ {[%clk 0:00:32.3]} 57... Kd6 {[%clk 0:00:14.7]} 58. Nf7+
{[%clk 0:00:32.3]} 58... Ke6 {[%clk 0:00:14.6]} 59. Nd8+ {[%clk 0:00:32.2]}
59... Kf5 {[%clk 0:00:15.5]} 60. Nc6 {[%clk 0:00:31.9]} 60... Ra3 {[%clk
0:00:15.2]} 61. Nd4+ {[%clk 0:00:31.5]} 61... Kg6 {[%clk 0:00:14.6]} 62. Ne6
{[%clk 0:00:31.4]} 62... Ra4 {[%clk 0:00:14.4]} 63. Kh3 {[%clk 0:00:30.7]} 63...
Kf7 {[%clk 0:00:13.3]} 64. Nc5 {[%clk 0:00:30]} 64... Rc4 {[%clk 0:00:12.3]} 65.
Nd3 {[%clk 0:00:30.4]} 65... Ke6 {[%clk 0:00:11.5]} 66. Nb2 {[%clk 0:00:28.8]}
66... Rb4 {[%clk 0:00:10.4]} 67. Nd3 {[%clk 0:00:28.7]} 67... Rd4 {[%clk
0:00:11]} 68. Nc5+ {[%clk 0:00:28.9]} 68... Kf5 {[%clk 0:00:11.1]} 69. Kh2
{[%clk 0:00:27.2]} 69... Rc4 {[%clk 0:00:10.5]} 70. Nb7 {[%clk 0:00:26.2]} 70...
Rc2 {[%clk 0:00:09.7]} 71. Nd6+ {[%clk 0:00:26.2]} 71... Ke5 {[%clk 0:00:10]}
72. Nf7+ {[%clk 0:00:26.2]} 72... Kd4 {[%clk 0:00:10]} 73. Nd8 {[%clk
0:00:25.5]} 73... Ke3 {[%clk 0:00:10.1]} 74. Ne6 {[%clk 0:00:25.9]} 74... Rc4
{[%clk 0:00:08.5]} 75. Ng7 {[%clk 0:00:25.6]} 75... Kf2 {[%clk 0:00:08.5]} 76.
Nxh5 {[%clk 0:00:24.5]} 76... Ra4 {[%clk 0:00:07.4]} 77. Nxf6 {[%clk 0:00:24.4]}
77... Kf1 {[%clk 0:00:07.5]} 78. Ng4 {[%clk 0:00:24.3]} 78... Ra2 {[%clk
0:00:07.8]} 79. h5 {[%clk 0:00:22.6]} 79... Rxg2+ {[%clk 0:00:08.2]} 80. Kh3
{[%clk 0:00:23.2]} 80... Rg3+ {[%clk 0:00:08.9]} 81. Kh4 {[%clk 0:00:22.8]}
81... Ke2 {[%clk 0:00:09.8]} 82. h6 {[%clk 0:00:21.1]} 82... Kxf3 {[%clk
0:00:10.4]} 83. Ne5+ {[%clk 0:00:20.6]} 83... Ke4 {[%clk 0:00:10.1]} 84. h7
{[%clk 0:00:20.7]} 84... Rg1 {[%clk 0:00:08.5]} 85. Ng6 {[%clk 0:00:13.9]} 85...
Rh1+ {[%clk 0:00:07.4]} 86. Kg5 {[%clk 0:00:14.4]} 86... f3 {[%clk 0:00:07.7]}
87. Nh4 {[%clk 0:00:12.2]} 87... f2 {[%clk 0:00:05.1]} 88. h8=Q {[%clk
0:00:12.1]} 88... f1=Q {[%clk 0:00:06]} 89. Qa8+ {[%clk 0:00:11.4]} 89... Kd3
{[%clk 0:00:06.1]} 90. Qa6+ {[%clk 0:00:11.1]} 90... Kc2 {[%clk 0:00:06.3]} 91.
Qa2+ {[%clk 0:00:11.3]} 91... Kd1 {[%clk 0:00:05.7]} 92. Qb1+ {[%clk 0:00:11.4]}
92... Kd2 {[%clk 0:00:06.2]} 93. Qb2+ {[%clk 0:00:11.5]} 93... Ke1 {[%clk
0:00:05]} 94. Qc1+ {[%clk 0:00:11.5]} 94... Kf2 {[%clk 0:00:05.1]} 95. Qf4+
{[%clk 0:00:09.4]} 95... Ke2 {[%clk 0:00:01.7]} 96. Qc4+ {[%clk 0:00:09.4]}
96... Ke3 {[%clk 0:00:01.4]} 97. Qc5+ {[%clk 0:00:08.1]} 97... Ke2 {[%clk
0:00:02.3]} 98. Qc4+ {[%clk 0:00:08.2]} 98... Kd2 {[%clk 0:00:02.1]} 99. Qb4+
{[%clk 0:00:08.3]} 99... Kc2 {[%clk 0:00:01.9]} 100. Qa4+ {[%clk 0:00:07.8]}
100... Kb2 {[%clk 0:00:02.1]} 101. Qb4+ {[%clk 0:00:08.3]} 101... Kc2 {[%clk
0:00:01.5]} 102. Qa4+ {[%clk 0:00:08.6]} 102... Kc3 {[%clk 0:00:01.6]} 103. Qa5+
{[%clk 0:00:08.8]} 103... Kd4 {[%clk 0:00:01.2]} 104. Qb4+ {[%clk 0:00:09]}
104... Kd5 {[%clk 0:00:01.1]} 105. Qd2+ {[%clk 0:00:09.1]} 1-0